bitfinex-derivatives/quotes_ETHF0:USTF0_20250110
["timestamp","ask_amount","ask_price","bid_price","bid_amount"]
[1736519550276,0.38054916,3258.1,3258.0,41.10695]
[1736519550472,0.56814451,3258.6,3258.0,47.468]
[1736519550772,0.56814451,3258.6,3258.5,0.3069]
[1736519550967,5.94614055,3261.6,3258.7,0.7672]
[1736519550968,3.2078,3259.5,3258.7,0.7672]
[1736519551168,3.2078,3260.0,3259.4,3.32174319]
[1736519551368,3.2078,3260.0,3258.3,1.5346]
[1736519551369,3.2078,3260.5,3260.4,0.30672]
[1736519551571,3.1596,3261.5,3260.1,1.693]
[1736519551572,3.2078,3261.0,3260.1,1.693]
[1736519551774,3.2078,3261.0,3260.1,3.87802445]
[1736519552073,3.2078,3261.5,3260.4,3.32174319]
[1736519552279,3.2078,3261.5,3261.0,0.30666]
[1736519552576,3.2078,3261.5,3261.4,0.30663]
[1736519552775,1.0826,3262.3,3261.4,0.30663]
[1736519552981,3.2078,3261.9,3261.1,1.693]
[1736519553172,3.2078,3261.5,3261.2,0.30665]
[1736519553367,3.2078,3261.5,3259.9,5.51954319]
[1736519553571,3.2078,3261.1,3260.8,0.30668]
[1736519553871,3.2078,3261.1,3260.0,1.692]
[1736519553872,3.2078,3261.5,3261.2,0.30664]
[1736519554070,3.2078,3261.5,3260.9,45.81374319]
[1736519554272,3.2078,3261.5,3260.9,44.74002581]
[1736519554784,3.2078,3261.5,3260.9,5.01374319]
[1736519554974,3.2078,3261.1,3260.8,0.30668]
[1736519555273,3.2078,3261.1,3260.7,0.30669]
[1736519555473,3.2078,3261.1,3260.5,1.692]
[1736519555674,3.2078,3261.1,3260.8,0.30668]
[1736519555880,3.2078,3261.1,3260.9,0.30667]
[1736519556069,3.2078,3261.1,3260.5,1.692]
[1736519556274,3.2078,3261.1,3261.0,0.30667]
[1736519556477,3.2078,3261.5,3260.7,1.692]
[1736519556774,1.0826,3262.3,3261.0,0.30666]
[1736519556973,3.2078,3260.9,3260.5,0.30671]
[1736519557173,3.2078,3260.9,3259.9,5.51954319]
[1736519557377,3.2078,3260.0,3259.4,3.32174319]
[1736519557584,3.2078,3260.0,3259.9,3.62851319]
[1736519557784,1.78352712,3262.8,3259.9,3.62851319]
[1736519557785,3.2078,3260.4,3260.3,0.30673]
[1736519558080,3.2078,3261.0,3259.9,5.01374319]
[1736519558381,3.2078,3260.9,3260.8,0.30668]
[1736519558574,3.2078,3260.9,3260.4,3.32174319]
[1736519558874,3.2078,3260.5,3259.9,5.01374319]
[1736519559077,3.2078,3260.0,3259.8,0.30678]
[1736519559272,3.2078,3260.0,3259.1,4.8998]
[1736519559473,3.2078,3259.6,3259.5,0.3068]
[1736519560179,3.2078,3259.6,3259.5,40.8]
[1736519560380,3.2078,3259.6,3259.5,41.10681]
[1736519560679,3.2078,3259.6,3259.5,40.8]
[1736519560977,3.78726075,3259.6,3259.5,46.10681]
[1736519561179,0.57946075,3259.6,3259.5,49.31461]
[1736519561382,7.5e-07,3259.6,3259.5,49.31461]
[1736519561681,3.2078,3259.8,3259.5,40.8]
[1736519561983,0.00111716,3259.6,3259.5,40.8]
[1736519562179,0.41376588,3259.6,3258.4,3.32174319]
[1736519562384,3.2078,3259.1,3258.4,3.32174319]
[1736519562580,3.2078,3258.7,3258.4,3.32174319]
[1736519562786,0.41264872,3258.6,3257.7,3.2078]
[1736519562987,3.2078,3258.1,3257.4,3.32174319]
[1736519563279,3.2078,3258.3,3258.2,0.30693]
[1736519563485,0.30693,3258.2,3257.8,40.8]
[1736519563782,3.2078,3257.9,3257.8,40.8]
[1736519564586,0.30699,3257.6,3256.9,3.32174319]
[1736519564781,3.2078,3257.2,3256.8,0.30706]
[1736519564982,3.2078,3257.2,3256.4,3.32174319]
[1736519565284,1.80197,3258.1,3256.9,40.8]
[1736519565580,3.2078,3257.0,3256.9,40.8]
[1736519565877,3.2078,3257.0,3255.4,5.01374319]
[1736519566080,3.2078,3256.1,3255.7,0.30716]
[1736519566273,3.2078,3256.5,3255.8,40.8]
[1736519566476,0.35246394,3256.4,3256.2,0.30711]
[1736519566676,0.35246394,3256.3,3256.2,0.30712]
[1736519567079,0.35246394,3256.3,3256.2,5.30712]
[1736519567588,3.2078,3256.5,3255.4,6.52954319]
[1736519567780,3.2078,3255.9,3255.4,3.32174319]
[1736519568084,3.2078,3255.5,3255.3,0.3072]
[1736519568385,2.45963,3257.0,3254.5,4.9008]
[1736519568386,0.96026553,3255.4,3255.0,3.2078]
[1736519568579,0.54761681,3255.4,3255.3,0.3072]
[1736519568781,0.52315387,3255.4,3254.9,3.32174319]
[1736519568987,0.52316892,3255.3,3255.2,0.30721]
[1736519569286,3.2078,3256.0,3254.9,3.32174319]
[1736519569472,0.35059329,3255.9,3255.0,3.2078]
[1736519569676,0.35059329,3255.8,3255.7,0.30716]
[1736519569884,0.35059329,3255.8,3255.7,3.32174319]
[1736519570077,0.35059329,3255.8,3255.7,3.62890319]
[1736519570385,0.35059329,3255.8,3255.7,3.32174319]
[1736519570386,0.35035462,3255.8,3255.7,3.32174319]
[1736519570591,3.2078,3256.0,3255.9,0.30715]
[1736519570880,3.2078,3256.4,3255.5,1.693]
[1736519571073,3.2078,3256.0,3255.2,3.32174319]
[1736519571273,0.92539701,3255.9,3255.6,40.8]
[1736519571473,3.2078,3255.7,3255.6,40.8]
[1736519571681,3.82604701,3255.7,3255.6,40.8]
[1736519572390,1.23944121,3255.7,3255.6,41.10717]
[1736519572685,0.61824701,3255.7,3255.6,47.80017]
[1736519573080,7.01e-06,3255.7,3255.6,51.00797]
[1736519573283,3.2078,3257.0,3255.7,0.76791]
[1736519573478,3.2078,3257.0,3256.7,0.30707]
[1736519573674,3.2078,3257.0,3256.9,0.30705]
[1736519574075,3.73096892,3258.1,3257.6,0.30699]
[1736519574280,3.73096892,3258.1,3256.8,3.32174319]
[1736519574585,3.2078,3258.6,3258.5,0.3069]
[1736519574884,1.0405,3258.8,3258.5,40.8]
[1736519575084,3.2078,3259.0,3258.5,40.8]
[1736519575283,3.2078,3259.4,3258.6,3.2078]
[1736519575683,3.2078,3259.0,3258.5,40.8]
[1736519575982,3.2078,3258.8,3258.5,40.8]
[1736519576486,0.52316892,3258.7,3257.8,3.32174319]
[1736519576689,0.53194106,3258.6,3258.5,0.3069]
[1736519577481,3.2078,3259.3,3258.3,3.2078]
[1736519577785,3.2078,3259.2,3257.9,3.2078]
[1736519577983,3.2078,3259.2,3257.8,4.08916319]
[1736519577984,3.51464,3259.2,3257.8,4.08916319]
[1736519578189,3.2078,3258.7,3258.2,0.30692]
[1736519578395,3.2078,3258.7,3257.8,3.32174319]
[1736519578681,3.2078,3258.7,3258.6,0.30689]
[1736519579288,3.2078,3258.7,3258.6,1.99989]
[1736519579484,3.2078,3259.3,3259.1,0.30684]
[1736519579688,3.2078,3259.3,3257.8,3.32174319]
[1736519579984,0.53194106,3259.5,3257.7,0.30697]
[1736519579985,3.2078,3258.2,3257.7,0.30697]
[1736519580186,3.2078,3258.2,3257.5,1.693]
[1736519580187,3.2078,3258.2,3258.1,0.30694]
[1736519580388,3.2078,3258.3,3258.1,40.8]
[1736519580587,3.2078,3258.3,3257.0,3.2078]
[1736519580588,3.2078,3258.3,3256.9,1.7]
[1736519580788,3.32174319,3259.1,3256.9,1.7]
[1736519580789,3.2078,3257.5,3256.9,1.7]
[1736519580985,3.2078,3258.3,3257.1,3.2078]
[1736519581185,3.2078,3258.3,3257.2,40.8]
[1736519581385,3.2078,3258.3,3257.3,3.32174319]
[1736519581690,3.2078,3257.5,3257.4,0.307]
[1736519581877,3.2078,3257.5,3257.2,40.8]
[1736519581878,3.2078,3257.6,3257.2,40.8]
[1736519582196,0.30701,3257.4,3256.7,0.30706]
[1736519582486,3.32174319,3258.1,3255.8,6.77048316]
[1736519582487,3.2078,3257.0,3255.8,3.32174319]
[1736519582699,3.2078,3256.6,3255.9,40.8]
[1736519582988,3.2078,3257.3,3256.3,3.32174319]
[1736519583387,3.2078,3257.7,3256.3,3.32174319]
[1736519583690,3.2078,3257.7,3255.9,40.8]
[1736519583691,3.2078,3257.7,3257.6,0.30699]
[1736519583884,3.2078,3257.7,3257.1,2.00703]
[1736519584082,3.2078,3257.3,3256.3,6.52954319]
[1736519584280,3.2078,3256.9,3256.8,0.30706]
[1736519584488,1.82866,3258.5,3257.4,0.307]
[1736519584489,3.2078,3257.5,3257.4,0.307]
[1736519584680,3.2078,3257.5,3257.0,0.30704]
[1736519584880,3.2078,3257.5,3256.4,40.8]
[1736519585086,3.2078,3257.5,3256.8,3.32174319]
[1736519585286,3.2078,3257.5,3256.5,1.7]
[1736519585487,3.2078,3256.8,3256.5,1.7]
[1736519585692,3.2078,3256.8,3256.5,0.30708]
[1736519585887,3.2078,3256.8,3256.4,40.8]
[1736519586389,0.30718,3255.5,3254.8,9.71260888]
[1736519586592,3.2078,3255.2,3254.8,9.40536888]
[1736519586794,3.2078,3255.2,3254.7,0.30726]
[1736519587091,3.2078,3255.2,3254.3,3.2078]
[1736519587291,3.2078,3255.2,3254.7,0.30726]
[1736519587491,3.2078,3255.2,3254.3,6.52954319]
[1736519587693,3.2078,3255.2,3255.1,0.30722]
[1736519587883,3.2078,3255.6,3254.3,3.32174319]
[1736519588084,3.2078,3255.6,3255.5,0.30718]
[1736519588291,3.2078,3256.0,3255.7,0.30716]
[1736519588491,3.2078,3256.0,3255.3,5.02174319]
[1736519588492,3.2078,3256.0,3255.3,1.7]
[1736519588796,3.2078,3255.6,3255.3,1.7]
[1736519588992,3.2078,3255.6,3254.5,1.701]
[1736519589192,3.2078,3255.4,3254.5,1.701]
[1736519589395,3.2078,3255.4,3255.3,0.3072]
[1736519589593,3.2078,3255.4,3254.4,3.2078]
[1736519589889,3.2078,3254.9,3254.1,0.7683]
[1736519590083,3.2078,3254.9,3254.8,0.30725]
[1736519590288,3.2078,3255.3,3255.2,0.30721]
[1736519590502,3.2078,3255.3,3254.8,40.8]
[1736519590704,3.2078,3254.9,3254.8,40.8]
[1736519590999,3.51504,3254.9,3254.8,40.8]
[1736519591193,3.2078,3254.9,3254.8,40.8]
[1736519591386,3.2078,3254.9,3254.8,41.10725]
[1736519591587,3.2078,3254.9,3254.8,40.8]
[1736519591792,3.2078,3254.9,3254.8,41.10725]
[1736519592091,3.2078,3255.5,3254.8,40.8]
[1736519592495,1.0381,3255.7,3254.8,40.8]
[1736519592496,3.2078,3255.1,3254.8,40.8]
[1736519593199,0.30724,3254.9,3254.8,40.8]
[1736519593387,3.2078,3255.1,3254.8,40.8]
[1736519594391,3.2078,3255.1,3254.8,41.10725]
[1736519594693,3.2078,3255.1,3254.8,40.8]
[1736519595094,3.2078,3255.1,3255.0,0.30723]
[1736519595493,1.53000105,3256.5,3255.0,0.30723]
[1736519595494,5.3762,3256.0,3255.7,0.30716]
[1736519595792,5.3762,3256.0,3254.8,4.08985319]
[1736519595793,3.2078,3256.0,3255.9,41.10715]
[1736519596695,3.2078,3257.2,3256.5,0.30709]
[1736519596893,3.2078,3257.6,3256.9,3.2078]
[1736519597086,3.2078,3257.2,3256.6,1.701]
[1736519597287,3.2078,3257.2,3256.8,0.30706]
[1736519597489,3.2078,3257.7,3256.6,1.701]
[1736519597695,3.2078,3257.7,3257.6,0.30698]
[1736519597895,3.2078,3258.2,3258.1,0.30694]
[1736519598099,3.2078,3258.6,3257.9,3.2078]
[1736519598294,3.2078,3258.6,3258.1,40.8]
[1736519598500,3.2078,3258.6,3258.5,0.3069]
[1736519598796,0.57333402,3259.1,3258.5,0.3069]
[1736519598797,3.2078,3259.2,3258.5,8.23054319]
[1736519598997,3.2078,3259.2,3259.1,0.30684]
[1736519599192,0.00111716,3259.6,3258.5,8.23054319]
[1736519599193,0.63609541,3259.5,3259.4,0.30682]
[1736519599393,0.00111716,3259.6,3259.5,0.30681]
[1736519599597,3.84501257,3259.6,3259.4,40.8]
[1736519599793,0.63609541,3259.5,3259.4,41.10682]
[1736519600000,3.20891716,3259.6,3259.4,40.8]
[1736519600194,3.84501257,3259.6,3259.4,40.8]
[1736519600393,0.00111716,3259.6,3259.5,0.30681]
[1736519600697,3.2078,3260.7,3259.5,5.02274319]
[1736519600902,3.2078,3260.7,3259.8,3.2078]
[1736519601096,3.2078,3260.7,3260.1,40.8]
[1736519601402,1.1053,3261.4,3260.2,0.30674]
[1736519601403,3.2078,3260.6,3260.2,0.30674]
[1736519601597,3.2078,3260.6,3260.5,0.30671]
[1736519601795,1.1053,3261.4,3260.1,44.12174319]
[1736519601796,3.2078,3261.2,3260.1,44.12174319]
[1736519602002,3.2078,3260.8,3260.7,0.30669]
[1736519602204,3.2078,3261.2,3260.1,44.12174319]
[1736519602596,3.2078,3260.4,3260.1,40.8]
[1736519602799,3.2078,3260.4,3259.6,3.32174319]
[1736519603002,3.2078,3260.8,3260.1,3.32174319]
[1736519603196,3.2078,3261.6,3260.7,40.8]
[1736519603404,3.2078,3261.1,3260.1,3.32174319]
[1736519603600,3.2078,3260.6,3260.5,0.30671]
[1736519603803,3.2078,3261.4,3260.1,6.52954319]
[1736519604004,3.2078,3261.4,3261.0,0.30666]
[1736519604198,3.2078,3261.4,3261.1,0.30665]
[1736519604402,3.2078,3261.4,3260.5,40.8]
[1736519604706,3.2078,3261.3,3260.5,40.8]
[1736519605100,3.2078,3261.3,3261.2,0.30665]
[1736519605700,3.2078,3262.4,3261.2,5.0]
[1736519605900,3.2078,3262.4,3262.3,40.8]
[1736519606103,3.2078,3262.9,3262.3,40.8]
[1736519606904,3.2078,3263.3,3262.6,6.52954319]
[1736519607108,3.2078,3263.7,3263.1,3.32174319]
[1736519607408,3.2078,3263.2,3262.4,3.2078]
[1736519607599,3.2078,3263.2,3262.3,40.8]
[1736519607799,3.2078,3262.6,3262.3,40.8]
[1736519608006,0.30654,3262.4,3261.4,3.2078]
[1736519608305,3.2078,3261.5,3260.6,5.02074319]
[1736519608502,3.2078,3262.2,3261.2,0.30664]
[1736519608704,3.2078,3261.8,3260.6,8.22854319]
[1736519608903,3.2078,3261.4,3260.8,0.30668]
[1736519609202,3.2078,3261.4,3260.6,8.22854319]
[1736519609510,3.2078,3261.4,3260.7,0.30669]
[1736519610009,3.2078,3261.4,3260.6,8.22854319]
[1736519610206,3.2078,3261.4,3260.7,40.8]
[1736519611305,3.2078,3261.0,3260.2,0.30673]
[1736519611506,3.2078,3260.6,3260.1,3.32174319]
[1736519611702,3.2078,3261.0,3260.1,3.32174319]
[1736519611902,3.2078,3261.2,3260.3,40.8]
[1736519612099,3.2078,3261.2,3260.4,0.30672]
[1736519612299,3.2078,3261.2,3260.8,0.30668]
[1736519612497,3.2078,3261.2,3260.4,0.30672]
[1736519612799,3.2078,3260.8,3260.3,40.8]
[1736519613297,3.2078,3260.9,3260.6,0.3067]
[1736519613499,3.2078,3260.9,3260.3,40.8]
[1736519613704,3.2078,3260.4,3260.3,40.8]
[1736519614208,3.2078,3260.4,3259.5,1.717]
[1736519614209,3.51452,3260.4,3259.5,1.717]
[1736519614406,3.2078,3259.9,3259.5,1.717]
[1736519614612,3.2078,3259.9,3259.8,0.30678]
[1736519614818,3.2078,3259.9,3259.6,0.3068]
[1736519615109,3.2078,3259.9,3259.3,9.207]
[1736519615305,3.2078,3259.9,3259.8,40.8]
[1736519616410,3.2078,3259.9,3259.8,41.10678]
[1736519616913,3.2078,3260.4,3260.3,0.30673]
[1736519617507,3.2078,3260.4,3260.0,2.02376]
[1736519617804,3.2078,3260.4,3260.1,0.30674]
[1736519618004,0.44666431,3260.4,3260.0,1.717]
[1736519618205,3.2078,3260.9,3260.0,1.717]
[1736519618406,3.2078,3260.9,3260.0,4.9248]
[1736519618601,3.2078,3260.9,3260.0,2.02375]
[1736519618801,3.2078,3260.9,3260.0,1.717]
[1736519619006,3.2078,3260.5,3259.6,3.2078]
[1736519619508,3.2078,3260.9,3260.0,3.2078]
[1736519619807,1.717,3262.4,3259.6,4.08874319]
[1736519619808,3.2078,3261.4,3261.3,0.30664]
[1736519620204,3.2078,3262.2,3262.0,0.30657]
[1736519620401,3.2078,3262.2,3261.3,40.8]
[1736519620604,3.2078,3262.2,3262.1,0.30656]
[1736519621007,3.2078,3262.2,3261.6,6.52954319]
[1736519621008,4.3253,3263.2,3262.6,0.30651]
[1736519621203,3.2078,3263.2,3262.1,3.32174319]
[1736519621609,3.2078,3262.8,3262.0,4.9248]
[1736519621815,3.2078,3262.8,3262.0,1.717]
[1736519622013,0.30653,3262.5,3262.0,1.717]
[1736519622211,3.2078,3262.2,3262.0,1.717]
[1736519622410,3.2078,3262.2,3261.3,45.7248]
[1736519622712,3.2078,3262.2,3261.3,44.0078]
[1736519622917,3.2078,3261.7,3260.6,3.32174319]
[1736519623116,3.2078,3260.9,3260.4,0.30672]
[1736519623312,3.2078,3260.9,3260.2,0.30673]
[1736519623612,3.2078,3260.9,3260.5,40.8]
[1736519624012,2.2078,3260.9,3260.5,40.8]
[1736519624319,0.63609541,3260.8,3260.5,40.8]
[1736519624518,0.63609541,3260.7,3260.5,40.8]
[1736519624819,0.63609541,3260.8,3260.5,40.8]
[1736519625116,0.63609541,3260.7,3260.2,0.30673]
[1736519625317,0.63609541,3260.8,3260.1,3.32174319]
[1736519625518,2.2078,3260.9,3260.1,3.32174319]
[1736519625815,1.2029,3261.8,3261.3,0.30663]
[1736519625816,0.63609541,3261.5,3261.3,0.30663]
[1736519626114,3.84389541,3261.6,3261.4,41.10662]
[1736519626419,0.30662,3261.5,3261.4,40.8]
[1736519626609,0.30669,3260.8,3260.1,3.62848319]
[1736519626812,0.76658,3261.4,3260.1,3.62848319]
[1736519626813,0.30665,3261.2,3260.1,3.32174319]
[1736519627019,0.30664,3261.3,3260.7,0.30669]
[1736519627316,0.94273541,3261.3,3260.7,0.30669]
[1736519627621,0.63609541,3261.2,3260.8,40.8]
[1736519627816,0.63609541,3261.1,3260.8,40.8]
[1736519628116,0.63609541,3261.3,3260.8,40.8]
[1736519628316,0.63609541,3261.2,3261.1,0.30666]
[1736519628519,3.2078,3261.4,3260.8,44.0078]
[1736519628709,0.63609541,3261.3,3261.2,0.30665]
[1736519629017,0.63609541,3261.7,3261.2,3.2078]
[1736519629226,0.63609541,3262.1,3261.8,0.30658]
[1736519629418,0.63609541,3262.0,3261.9,0.30658]
[1736519629716,0.63609541,3262.0,3261.6,3.32174319]
[1736519629920,0.63609541,3261.9,3261.8,0.30659]
[1736519630122,0.63609541,3261.9,3261.2,3.2078]
[1736519630418,0.3066,3261.7,3261.1,0.30665]
[1736519630616,0.63609541,3261.6,3261.1,3.32174319]
[1736519630814,0.94271541,3261.5,3260.9,0.30667]
[1736519631018,0.94272541,3261.4,3260.8,1.717]
[1736519631316,0.63609541,3261.3,3261.1,3.32174319]
[1736519631515,0.59370842,3261.2,3261.1,3.62840319]
[1736519632117,0.59370842,3261.2,3261.1,3.32174319]
[1736519632328,0.59370842,3261.2,3261.0,40.8]
[1736519632618,0.30664,3261.3,3261.0,40.8]
[1736519632822,3.2078,3261.1,3261.0,40.8]
[1736519633120,3.2078,3261.1,3260.6,3.32174319]
[1736519633121,0.98717722,3261.1,3260.6,3.32174319]
[1736519633319,0.97344318,3261.5,3260.7,3.2078]
[1736519633622,0.97333262,3261.9,3261.5,0.30662]
[1736519633821,0.97333262,3261.8,3261.4,40.8]
[1736519634028,0.97333262,3261.7,3261.4,40.8]
[1736519634216,3.2078,3261.9,3261.4,40.8]
[1736519634217,0.97333262,3261.8,3261.4,40.8]
[1736519634416,0.97333262,3261.7,3261.4,40.8]
[1736519634715,3.2078,3261.5,3260.7,6.52954319]
[1736519634923,0.97333262,3261.4,3260.8,0.30668]
[1736519635114,0.97333262,3261.3,3261.0,0.30666]
[1736519635313,0.97333262,3261.4,3261.3,0.30664]
[1736519635527,0.52598179,3261.8,3261.7,0.3066]
[1736519635727,0.52598179,3262.2,3261.7,0.3066]
[1736519636021,3.2078,3261.8,3260.7,6.52954319]
[1736519636225,0.83258179,3261.7,3261.1,0.30665]
[1736519636418,0.52598179,3261.6,3260.7,6.52954319]
[1736519636615,0.52598179,3261.5,3260.7,6.52954319]
[1736519636815,0.52598179,3261.6,3260.7,6.52954319]
[1736519637022,0.52598179,3261.7,3261.2,3.32174319]
[1736519637315,0.83260179,3261.6,3260.7,6.52954319]
[1736519637520,0.52598179,3261.5,3260.7,6.52954319]
[1736519637724,0.5265835,3261.4,3260.8,0.76672]
[1736519637924,3.2078,3262.2,3261.2,3.32174319]
[1736519637925,0.5265835,3262.1,3261.2,3.32174319]
[1736519638121,3.2078,3262.2,3261.9,0.30658]
[1736519638122,0.5265835,3262.0,3261.9,0.30658]
[1736519638330,0.5265835,3262.0,3261.6,1.717]
[1736519638624,1.1748,3262.6,3261.6,1.717]
[1736519638625,3.2078,3261.8,3261.6,1.717]
[1736519638921,1.1748,3262.6,3261.6,1.717]
[1736519638922,0.5265835,3261.7,3261.6,1.717]
[1736519639124,0.5265835,3261.7,3261.1,3.2078]
[1736519639422,0.5265835,3261.6,3261.2,0.30665]
[1736519639721,0.30665,3261.2,3260.7,8.52423319]
[1736519639929,0.5265835,3261.1,3261.0,0.30666]
[1736519640219,1.9411,3262.6,3260.7,8.98427319]
[1736519640220,0.5265835,3261.3,3261.2,0.30665]
[1736519640419,0.5265835,3261.7,3261.2,6.52954319]
[1736519640623,3.51435,3262.3,3261.8,0.30659]
[1736519640824,3.2078,3262.3,3261.9,40.8]
[1736519641126,3.2078,3263.8,3262.5,0.7663]
[1736519641327,7.88505355,3264.2,3263.1,3.2078]
[1736519641629,1.1241,3264.2,3263.2,3.32174319]
[1736519641825,3.55315355,3264.4,3263.7,3.32174319]
[1736519642026,3.55315355,3264.4,3264.3,0.30636]
[1736519642228,3.55315355,3264.4,3264.3,3.51416]
[1736519642730,3.55315355,3264.4,3264.3,40.8]
[1736519642931,7.06730355,3264.4,3264.3,40.8]
[1736519643136,7.06730355,3264.4,3264.0,0.30638]
[1736519643137,6.76095355,3264.4,3264.0,0.30638]
[1736519643435,3.2078,3264.4,3263.4,4.8958]
[1736519643644,3.2078,3264.4,3264.1,40.8]
[1736519643830,3.2078,3264.9,3264.4,0.30634]
[1736519644034,3.2078,3264.9,3264.3,3.2078]
[1736519644241,3.2078,3264.9,3264.3,4.8958]
[1736519644442,1.1475,3265.6,3264.7,3.32174319]
[1736519644646,3.2078,3265.9,3264.8,3.2078]
[1736519644835,3.51401,3265.9,3265.1,0.30627]
[1736519645031,3.2078,3265.9,3264.8,3.2078]
[1736519645237,3.2078,3265.9,3265.2,3.2078]
[1736519645432,3.2078,3265.5,3264.7,3.32174319]
[1736519645643,3.2078,3265.1,3264.0,3.2078]
[1736519645847,0.30631,3264.8,3263.7,3.32174319]
[1736519646041,0.3063,3265.0,3264.2,0.30636]
[1736519646242,3.2078,3265.2,3264.5,0.30633]
[1736519646543,3.2078,3265.2,3264.0,3.2078]
[1736519646544,3.2078,3265.2,3264.4,3.2078]
[1736519646743,3.2078,3265.2,3265.1,0.30628]
[1736519646941,3.2078,3265.8,3264.8,3.2078]
[1736519647244,3.2078,3265.8,3265.3,0.30626]
[1736519647433,3.2078,3265.8,3264.8,3.2078]
[1736519647634,3.2078,3265.4,3264.8,3.2078]
[1736519647841,0.30628,3265.2,3264.8,3.2078]
[1736519648041,0.30631,3264.8,3264.3,3.2078]
[1736519648240,3.2078,3264.5,3263.7,1.32774699]
[1736519648549,0.3064,3263.8,3263.7,1.32774699]
[1736519648841,3.2078,3264.5,3263.7,1.32774699]
[1736519649035,0.30631,3264.9,3263.8,0.3064]
[1736519649233,1.1881,3265.1,3264.7,0.30631]
[1736519649436,3.2078,3265.4,3264.2,3.32174319]
[1736519649636,3.2078,3265.4,3264.4,3.2078]
[1736519649842,3.2078,3265.4,3264.4,3.51414]
[1736519650040,3.2078,3265.4,3264.4,3.2078]
[1736519650236,1.1881,3266.0,3265.4,0.30625]
[1736519650438,3.2078,3266.1,3265.3,3.2078]
[1736519650637,3.2078,3266.1,3265.2,3.32174319]
[1736519650837,3.2078,3266.5,3265.5,40.8]
[1736519651243,3.51395,3266.5,3265.8,0.30621]
[1736519651444,3.2078,3266.5,3265.7,0.30622]
[1736519651639,3.2078,3266.1,3265.5,40.8]
[1736519651847,3.51403,3265.6,3265.5,40.8]
[1736519652145,3.2078,3265.6,3264.2,3.32174319]
[1736519652343,3.2078,3264.7,3263.7,6.52954319]
[1736519652642,3.2078,3263.9,3263.6,4.67309492]
[1736519652841,0.30641,3263.7,3263.6,4.67309492]
[1736519653047,5.30641,3263.7,3263.6,4.67309492]
[1736519653252,0.30641,3263.7,3263.6,4.67309492]
[1736519653443,5.30641,3263.7,3263.6,4.67309492]
[1736519653647,3.2078,3263.9,3262.5,3.32174319]
[1736519653941,3.5142,3263.9,3262.8,3.2078]
[1736519654143,3.2078,3263.9,3263.7,0.30641]
[1736519654343,3.2078,3263.9,3263.0,3.32174319]
[1736519654549,3.2078,3263.4,3262.3,3.2078]
[1736519654755,0.30649,3263.0,3262.3,3.2078]
[1736519654938,3.2078,3263.6,3262.3,3.2078]
[1736519655253,3.51422,3263.6,3263.1,0.30646]
[1736519655551,3.2078,3263.6,3262.7,3.2078]
[1736519656151,3.2078,3263.6,3263.5,0.30643]
[1736519656342,1.1042,3264.2,3263.8,0.3064]
[1736519656343,3.2078,3264.2,3263.8,0.3064]
[1736519656540,3.51413,3264.6,3263.5,3.2078]
[1736519656744,3.51413,3264.6,3263.6,3.32174319]
[1736519656941,3.2078,3264.6,3263.6,3.32174319]
[1736519657146,3.2078,3264.6,3263.9,3.2078]
[1736519657341,3.2078,3264.6,3263.6,3.32174319]
[1736519657540,0.30639,3264.0,3263.3,0.30645]
[1736519657746,0.30646,3263.2,3262.6,6.52954319]
[1736519657941,3.2078,3263.4,3262.6,6.52954319]
[1736519658149,3.2078,3263.0,3262.6,3.2078]
[1736519658354,0.30653,3262.5,3262.1,3.32174319]
[1736519658653,3.2078,3262.2,3261.4,4.8948]
[1736519658852,3.2078,3262.2,3261.6,0.3066]
[1736519659050,3.2078,3261.8,3261.1,3.32174319]
[1736519659252,0.30657,3262.1,3261.3,0.30663]
[1736519659454,3.2078,3262.3,3261.1,3.32174319]
[1736519659642,3.2078,3262.2,3261.4,3.2078]
[1736519659851,0.30654,3262.4,3261.7,0.30659]
[1736519660155,3.2078,3262.3,3261.8,0.30658]
[1736519660351,3.2078,3262.3,3261.7,0.30659]
[1736519660557,3.2078,3262.7,3262.3,0.30654]
[1736519660856,2.386,3263.2,3261.6,44.12174319]
[1736519660857,3.2078,3263.2,3262.4,0.30653]
[1736519661053,3.2078,3262.8,3261.6,3.32174319]
[1736519661246,3.2078,3261.9,3260.8,3.2078]
[1736519661447,3.2078,3261.9,3260.6,3.32174319]
[1736519661448,3.2078,3261.4,3260.6,3.32174319]
[1736519661647,3.2078,3261.4,3260.7,40.8]
[1736519661853,3.2078,3261.0,3260.7,40.8]
[1736519662049,3.2078,3261.5,3260.7,40.8]
[1736519662255,3.2078,3261.5,3261.0,3.51446]
[1736519662457,3.2078,3261.5,3261.0,3.2078]
[1736519663454,3.2078,3261.5,3260.7,40.8]
[1736519663959,3.2078,3261.5,3260.8,0.30668]
[1736519664154,3.2078,3261.5,3260.7,44.0078]
[1736519664352,3.2078,3261.5,3260.7,40.8]
[1736519664552,0.76642,3262.1,3260.7,40.8]
[1736519664553,0.30667,3261.0,3260.7,40.8]
[1736519664761,3.2078,3261.1,3260.7,40.8]
[1736519665055,3.2078,3261.6,3260.7,44.0078]
[1736519665257,3.2078,3261.6,3260.7,40.8]
[1736519665452,3.2078,3261.2,3260.7,40.8]
[1736519666055,0.30668,3260.8,3260.7,40.8]
[1736519666251,3.2078,3261.2,3260.7,40.8]
[1736519666452,3.2078,3261.2,3260.9,0.30667]
[1736519666653,3.2078,3261.2,3260.7,40.8]
[1736519666860,3.51445,3261.2,3260.7,40.8]
[1736519667359,0.30667,3261.0,3260.7,40.8]
[1736519667558,3.2078,3261.2,3261.0,0.30666]
[1736519667753,3.2078,3261.6,3260.6,3.32174319]